Cogmind - Beta 13 @@@ ROGUE MODE // 2024.04.03 @ 21:14:57 Player: CrimsonOccultist Result: Destroyed by Y-45 Defender with Heavy Assault Rifle Performance ------------- Evolutions (2) 1000 Regions Visited (5) 1000 Robots Destroyed (59) 295 Value Destroyed (1572) 1572 Prototype IDs (40) 800 Alien Tech Used (0) 0 Bonus (219) 219 TOTAL SCORE: 4886 Bonus ------- Follower Combat Kills 35 Aligned with FarCom 300 Friendly Fire -116 Cogmind --------- Core Integrity 0/550 Matter 247/300 Energy 100/100 System Corruption 4% Temperature Cool (9) Movement Core (350) Ox6 Location -8/Materials Parts ------- > --- POWER (1) -------- (None) > --- PROPULSION (2) --- (None) > --- UTILITY (6) ------ Large Storage Unit > --- WEAPON (2) ------- (None) > --- INVENTORY (15) --- Light Treads Light Treads Light Treads Light Treads Light Treads Light Treads Cesium-ion Thruster Improved VTOL Module Improved VTOL Module Improved VTOL Module Advanced Weight Redist. System Improved Light Armor Plating Mini Grenade Launcher Peak State ------------ > --- POWER ------------ Light Nuclear Core > --- PROPULSION ------- Improved Treads Improved Treads > --- UTILITY ---------- Heat Sink Large Storage Unit Advanced Targeting Computer Improved Light Armor Plating Improved Light Armor Plating Improved Light Armor Plating > --- WEAPON ----------- Particle Gun High-powered Shotgun > --- INVENTORY -------- Light Treads Light Treads Light Treads Light Treads Light Treads Light Treads Cesium-ion Thruster Improved VTOL Module Improved VTOL Module Improved VTOL Module Advanced Weight Redist. System Mini Grenade Launcher Missile Launcher Datajack [Rating: 29] Favorites ----------- Power Ion Engine Engine Ion Engine Power Core Light Nuclear Core Propulsion Light Treads Treads Light Treads Leg Aluminum Leg Flight Unit Improved VTOL Module Utility Large Storage Unit Device Heat Sink Storage Large Storage Unit Processor Signal Interpreter Protection Improved Light Armor Plating Weapon Assault Rifle Energy Gun Particle Gun Ballistic Gun Assault Rifle Launcher Rocket Launcher Special Melee Weapon Datajack Build | -11 -10 -10 -10 -9 -8 ------- Run | Yrd Mat Min Exi Min Mat Slots Evolved 4 | . . . . . 4 Power . | . . . . . . Propulsion . | . . . . . . Utility 4 | . . . . . 4 Weapon . | . . . . . . Parts Attached 79 | 6 7 6 1 2 57 Power 8 | 1 . . . . 7 Engine 4 | 1 . . . . 3 Core 4 | . . . . . 4 Reactor . | . . . . . . Propulsion 21 | 2 4 . . . 15 Treads 18 | 2 2 . . . 14 Leg 2 | . 2 . . . . Wheel . | . . . . . . Hover . | . . . . . . Flight 1 | . . . . . 1 Utility 19 | 1 2 2 . . 14 Device 2 | . . 1 . . 1 Storage 4 | 1 1 1 . . 1 Processor 3 | . 1 . . . 2 Hackware . | . . . . . . Protection 10 | . . . . . 10 Artifact . | . . . . . . Weapon 31 | 2 1 4 1 2 21 Energy Gun 4 | . . . . . 4 Energy Cannon . | . . . . . . Ballistic Gun 19 | 2 1 3 . 2 11 Ballistic Cannon . | . . . . . . Launcher 5 | . . 1 . . 4 Special Weapon . | . . . . . . Impact Weapon . | . . . . . . Slashing Weapon . | . . . . . . Piercing Weapon . | . . . . . . Special Melee Weapon 3 | . . . 1 . 2 Unidentified Prototypes 3 | . . 1 . . 2 Parts Lost 22 | . 1 . . . 21 Power 4 | . . . . . 4 Propulsion 4 | . 1 . . . 3 Utility 5 | . . . . . 5 Weapon 9 | . . . . . 9 Highest Loss Streak 11 | . 1 . . . 11 To Critical Strikes . | . . . . . . Average Slot Usage (%) 90 | . 99 100 85 100 83 Engine 10 | . 14 14 14 14 6 Core 1 | . . . . . 2 Treads 21 | . 23 28 28 28 17 Device 1 | . . . . . 2 Storage 11 | . 14 13 14 14 9 Processor 12 | . 13 14 14 14 11 Protection 7 | . . . . . 15 Energy Gun 1 | . . . . . 3 Ballistic Gun 18 | . 28 27 . 28 13 Naked Turns . | . . . . . . Heaviest Build 46 | 14 29 29 26 29 46 Greatest Support 46 | 40 40 40 40 40 46 Greatest Overweight (x) 6 | . 1 . . . 6 Average Overweight (x) . | . . . . . . Largest Inventory Capacity 15 | 8 15 15 15 15 15 Average Capacity 13 | 6 9 14 15 15 15 Most Carried 15 | 4 8 10 10 11 15 Average Carried 10 | 2 7 8 10 9 13 Final Capacity 15 | 8 15 15 15 15 15 Final Carried 13 | 4 8 9 10 9 13 Class Distribution -------------------- 64% | Mutant 35% | Scavenger-Mutant Dominant Class ---------------- Mutant | -10/Materials Mutant | -10/Mines Mutant | -10/Exiles Mutant | -9/Mines Scavenger-Mutant | -8/Materials Resources | -11 -10 -10 -10 -9 -8 ----------- Run | Yrd Mat Min Exi Min Mat Matter Collected 1757 | 284 481 162 . 22 808 Remotely . | . . . . . . Salvage Created 2171 | 95 755 184 . . 1137 Parts 123 | 1 48 11 . . 63 Haulers Intercepted 6 | . 2 . . . 4 Recyclers Shooed 3 | . . 1 . . 2 Parts Field Recycled . | . . . . . . Retrieved Matter . | . . . . . . Parts Self-Destructed . | . . . . . . Prevented . | . . . . . . Kills | -11 -10 -10 -10 -9 -8 ------- Run | Yrd Mat Min Exi Min Mat Combat Hostiles Destroyed 42 | . 16 6 . . 20 Melee 1 | . . . . . 1 Guns 36 | . 16 4 . . 16 AOE 5 | . . 2 . . 3 Classes Destroyed 13 | 1 6 . . . 6 Worker 2 | . 2 . . . . Builder 1 | . . . . . 1 Tunneler 1 | . . . . . 1 Hauler 6 | . 2 . . . 4 Recycler 3 | 1 . . . . 2 Operator 1 | . 1 . . . . Watcher 2 | . 2 . . . . Swarmer 9 | . 3 3 . . 3 Cutter 1 | . . . . . 1 Grunt 24 | . 13 3 . . 8 Brawler 1 | . . . . . 1 Sentry 4 | . . . . . 4 Hunter 3 | . . . . . 3 Thug 1 | . . 1 . . . Best Kill Streak 5 | 1 5 4 . . 4 Combat Bots Only 4 | . 3 4 . . 4 Max Kills in Single Turn 3 | 1 2 2 . . 3 Gunslinging 1 | . 1 . . . . Exploded 2 | . . 2 . . 1 Melee 1 | . . . . . 1 Uniques/NPCs Destroyed . | . . . . . . Combat | -11 -10 -10 -10 -9 -8 -------- Run | Yrd Mat Min Exi Min Mat Hostile Shots Fired 288 | . 77 16 . . 195 Missed 59 | . 16 5 . . 38 Damage Taken 3970 | . 680 156 . 24 3110 Core 791 | . 196 29 . . 566 Absorbed by Shields . | . . . . . . Regen/Repaired (Parts) 16 | . . . . . 16 Core Remaining (%) 55 | 100 . . . 10 . Volleys Fired 225 | 4 70 13 . . 138 Largest 2 | 2 2 2 . . 2 Hottest 121 | 40 40 53 . . 121 Shots Fired 432 | 8 140 26 . . 258 Gun 422 | 8 140 23 . . 251 Cannon . | . . . . . . Launcher 10 | . . 3 . . 7 Special . | . . . . . . Kinetic 377 | 8 140 23 . . 206 Thermal 45 | . . . . . 45 Explosive 10 | . . 3 . . 7 Electromagnetic . | . . . . . . Robot Hit Streak 22 | 2 22 4 . . 18 Robot Miss Streak 4 | 2 4 2 . . 4 Penetration Max . | . . . . . . Secondary Targets 2 | . 1 . . . 1 Max Gunslinging Chain 1 | . 1 . . . 1 Shots Hit Robots 300 | 3 101 12 4 . 180 Core Hits 134 | 2 42 11 . . 79 Critical Kills . | . . . . . . Critical Parts Destroyed 3 | . 1 . . . 2 Critical Strikes 5 | . 1 . . . 4 Burn 2 | . . . . . 2 Destroy 3 | . 1 . . . 2 Melee Attacks 7 | . . . 4 . 3 Impact . | . . . . . . Slashing . | . . . . . . Piercing . | . . . . . . Sneak Attacks 6 | . . . 4 . 2 Combat Hostiles . | . . . . . . Follow-up Attacks . | . . . . . . Damage Inflicted 4006 | 41 1275 299 . . 2391 Guns 3314 | 35 1272 169 . . 1838 Cannons . | . . . . . . Explosions 625 | . . 128 . . 497 Melee . | . . . . . . Ramming 67 | 6 3 2 . . 56 Kinetic 2818 | 35 1272 169 . . 1342 Thermal 496 | . . . . . 496 Explosive 625 | . . 128 . . 497 Electromagnetic . | . . . . . . Impact . | . . . . . . Slashing . | . . . . . . Piercing . | . . . . . . Highest Corruption 4 | . . . . . 4 Average Corruption 3 | . . . . . 3 Corruption Purged . | . . . . . . Corruption Blocked . | . . . . . . Effects 35 | . . . . . 35 Message Errors 8 | . . . . . 8 Matter Fused 8 | . . . . . 8 Heat Flow Errors 4 | . . . . . 4 Energy Discharges 3 | . . . . . 3 Parts Rejected 1 | . . . . . 1 Data Loss (minor) 7 | . . . . . 7 Data Loss (major) 2 | . . . . . 2 Alerts 2 | . . . . . 2 Overload Shots . | . . . . . . Overflow Damage 30 | . . 30 . . . Projectiles . | . . . . . . Explosions 30 | . . 30 . . . Melee . | . . . . . . Knockbacks 1 | . . . . . 1 Impact 1 | . . . . . 1 Kinetic . | . . . . . . Secondary . | . . . . . . Self-Inflicted Damage 87 | . . 40 . . 47 Shots 3 | . . 1 . . 2 Rammed 28 | 2 2 1 . . 23 Targets Rammed 29 | 2 2 1 . . 24 Kicked . | . . . . . . Crushed 1 | . . . . . 1 Highest Temperature 420 | . 20 2 . . 420 Average Temperature 84 | . 5 2 . . 87 Received Heat Transfer 1092 | . 321 42 . . 729 Effects 3 | . . . . . 3 Shutdowns 1 | . . . . . 1 Energy Bleed 2 | . . . . . 2 Siege Activations . | . . . . . . Robots Corrupted . | . . . . . . Combat Hostiles . | . . . . . . Parts Fried . | . . . . . . Impact Corruptions . | . . . . . . Robots Melted . | . . . . . . Combat Hostiles . | . . . . . . Parts Melted 1 | . . . . . 1 Heat Transferred 1369 | . . . . . 1369 Parts Sabotaged . | . . . . . . Parts Stolen . | . . . . . . Parts Stripped . | . . . . . . Power Chain Reactions . | . . . . . . Alert | -11 -10 -10 -10 -9 -8 ------- Run | Yrd Mat Min Exi Min Mat Peak Influence 323 | 5 323 137 . . 190 Initial 3 | . 3 . . . . Average 63 | 1 127 73 . . 41 Maximum Alert Level 1 | . 1 . . . . Low Security (%) 91 | 100 65 100 . 100 100 Level 1 8 | . 34 . . . . Level 2 . | . . . . . . Level 3 . | . . . . . . Level 4 . | . . . . . . Level 5 . | . . . . . . High Security . | . . . . . . Max Security . | . . . . . . Squads Dispatched 10 | . 5 1 . . 4 Investigation 5 | . 4 . . . 1 Extermination . | . . . . . . Reinforcement 4 | . 1 . . . 3 Assault 1 | . . 1 . . . Garrison . | . . . . . . Intercept . | . . . . . . Searches Triggered . | . . . . . . Construction Impeded . | . . . . . . Haulers Reinforced . | . . . . . . Active Scanning Responses . | . . . . . . Cargo Convoy Interrupts . | . . . . . . Stealth | -11 -10 -10 -10 -9 -8 --------- Run | Yrd Mat Min Exi Min Mat Distress Signals 5 | . 1 . . 1 3 Communications Jammed . | . . . . . . Distress Signals . | . . . . . . Times Spotted 75 | . 23 7 . 1 44 Peak Tracking Total 9 | . 4 3 . 1 9 Tactical Retreats 2 | . 1 . . . 1 Traps | -11 -10 -10 -10 -9 -8 ------- Run | Yrd Mat Min Exi Min Mat Traps Triggered 7 | . 2 . . . 5 Indirectly . | . . . . . . Trap Hack Attempts . | . . . . . . Triggered . | . . . . . . Disarmed 6 | . . . . . 6 Reprogrammed . | . . . . . . Reused . | . . . . . . Traps Extracted . | . . . . . . Installed . | . . . . . . Triggered . | . . . . . . Machines | -11 -10 -10 -10 -9 -8 ---------- Run | Yrd Mat Min Exi Min Mat Machines Disabled 3 | . . . . . 3 Max in Single Turn 1 | . . . . . 1 Machines Repaired . | . . . . . . Machines Dismantled . | . . . . . . Machines Sabotaged . | . . . . . . Overloaded Fab Kills . | . . . . . . Hacking | -11 -10 -10 -10 -9 -8 --------- Run | Yrd Mat Min Exi Min Mat Machines Accessed 20 | . 8 1 1 . 10 Terminals 15 | . 7 . . . 8 Fabricators . | . . . . . . Repair Stations 1 | . . . . . 1 Recycling Units 2 | . 1 . . . 1 Scanalyzers . | . . . . . . Garrison Access . | . . . . . . Total Hacks 56 | . 23 1 1 . 31 Successful 25 | . 11 1 1 . 12 Failed 31 | . 12 . . . 19 Catastrophic 7 | . 2 . . . 5 Database Lockouts . | . . . . . . Manual 33 | . 13 . 3 . 17 Terminals 45 | . 19 . . . 26 Fabricators . | . . . . . . Repair Stations 2 | . . . . . 2 Recycling Units 7 | . 4 . . . 3 Scanalyzers . | . . . . . . Garrison Access . | . . . . . . Terminal Hacks 11 | . 4 1 1 . 5 Record 1 | . 1 . . . . Robot Analysis 1 | . . . . . 1 Prototype ID Bank 2 | . 2 . . . . Open Door 1 | . . 1 . . . Branch Access Points 1 | . . . . . 1 Unreport Threat 3 | . 1 . . . 2 Disarm Traps 1 | . . . . . 1 Derelict Proto ID Bank 1 | . . . 1 . . Fabricator Hacks . | . . . . . . Repair Station Hacks 2 | . . . . . 2 Scan Component 1 | . . . . . 1 Repair 1 | . . . . . 1 Recycling Unit Hacks 2 | . 1 . . . 1 Retrieve Components 2 | . 1 . . . 1 Scanalyzer . | . . . . . . Garrison Access Hacks . | . . . . . . Unauthorized Hacks 10 | . 6 . . . 4 Terminals 10 | . 6 . . . 4 Assimilate 1 | . . . . . 1 Botnet 6 | . 4 . . . 2 Operators 3 | . 2 . . . 1 Fabricators . | . . . . . . Repair Stations . | . . . . . . Recycling Units . | . . . . . . Scanalyzers . | . . . . . . Garrison Access . | . . . . . . Data Cores Recovered . | . . . . . . Used . | . . . . . . Hacking Detections 18 | . 8 . . . 10 Full Trace Events 4 | . 2 . . . 2 Feedback Events . | . . . . . . Feedback Blocked . | . . . . . . Robot Schematics Acquired . | . . . . . . Robots Built . | . . . . . . Authchips . | . . . . . . Time . | . . . . . . Total Robot Build Rating . | . . . . . . Part Schematics Acquired . | . . . . . . Parts Built . | . . . . . . Authchips . | . . . . . . Time . | . . . . . . Total Part Build Rating . | . . . . . . Parts Repaired 1 | . . . . . 1 Time 60 | . . . . . 60 Parts Recycled . | . . . . . . Recycled Matter . | . . . . . . Retrieved Matter . | . . . . . . Retrieved Components 1 | . . . . . 1 Parts Scanalyzed . | . . . . . . Part Schematics Acquired . | . . . . . . Parts Damaged . | . . . . . . Bothacking | -11 -10 -10 -10 -9 -8 ------------ Run | Yrd Mat Min Exi Min Mat Used RIF Installer . | . . . . . . Robots Hacked 5 | . . . 4 . 1 Non-combat 3 | . . . 2 . 1 Combat 2 | . . . 2 . . Robot Hacks Applied 5 | . . . 4 . 1 parse_system 4 | . . . 4 . . no_distress 1 | . . . . . 1 Relay Couplers Released . | . . . . . . Fabnet Peak Effective % . | . . . . . . Robots Rewired . | . . . . . . Allies Hacked . | . . . . . . Hacks Repelled . | . . . . . . Allies | -11 -10 -10 -10 -9 -8 -------- Run | Yrd Mat Min Exi Min Mat Total Allies 4 | . . 1 . 3 . Largest Group 3 | . . 1 . 3 . Highest-Rated Group 40 | . . 31 . 40 . Highest-Rated Ally 31 | . . 31 . 16 . Total Orders . | . . . . . . Ally Attacks 13 | . . 10 . 3 . Total Damage 167 | . . 146 . 21 . Kills 1 | . . 1 . . . Allies Corrupted . | . . . . . . Allies Melted . | . . . . . . Intel | -11 -10 -10 -10 -9 -8 ------- Run | Yrd Mat Min Exi Min Mat Robot Analysis Total 1 | . . . . . 1 Derelict Logs Recovered 2 | . . 1 . 1 . Drone Launches . | . . . . . . Drone Recoveries . | . . . . . . Exploration | -11 -10 -10 -10 -9 -8 ------------- Run | Yrd Mat Min Exi Min Mat Turns Passed 5916 | 108 1315 808 391 329 2965 Spaces Moved 2486 | 56 635 431 237 202 925 Core 11 | 8 . . . . 3 Treads 2364 | 48 524 431 237 202 922 Legs 111 | . 111 . . . . Wheels . | . . . . . . Hover . | . . . . . . Flight . | . . . . . . Fastest Speed 50 | 50 120 160 160 160 160 Average Speed 164 | 144 153 160 160 160 176 Slowest Speed 350 | 160 190 160 160 160 350 Overloaded Moves . | . . . . . . Propulsion Burnouts . | . . . . . . Robots Hopped . | . . . . . . Cave-ins Triggered . | . . . . . . Exploration Rate (%) 57 | 6 82 82 61 58 58 Regions Visited 5 Branch Regions 3 Pre-discovered Areas . | . . . . . . Known Exits Taken 4 | . 1 1 1 1 . Unknown Exits Taken 1 | 1 . . . . . Scrap Searched 2 | . . 1 . 1 . Spaces Dug . | . . . . . . Terrain Destroyed 69 | . . 30 . . 39 Melee . | . . . . . . Projectile . | . . . . . . AOE 69 | . . 30 . . 39 Terrain Rammed . | . . . . . . Walls Destroyed . | . . . . . . Machines Disabled . | . . . . . . Actions | -11 -10 -10 -10 -9 -8 --------- Run | Yrd Mat Min Exi Min Mat Total 3887 | 71 839 522 248 208 1999 Wait 989 | . 110 63 5 2 809 Move 2482 | 56 634 430 236 201 925 Hop . | . . . . . . Pick Up 36 | 4 8 5 . . 19 Fast Attach 40 | 6 5 2 . 2 25 Attach 17 | . 1 1 1 . 14 Detach 11 | . . 1 2 1 7 Swap 22 | . 1 3 . . 18 Drop 30 | . 8 3 . 2 17 Fire 225 | 4 70 13 . . 138 Melee 7 | . . . 4 . 3 Ram 2 | . . . . . 2 Kick . | . . . . . . Crush 26 | 1 2 1 . . 22 Escape Stasis . | . . . . . . Rewire . | . . . . . . Trap . | . . . . . . Miscellaneous . | . . . . . . Route ------- -11/Scrapyard -10/Materials (discovered 4 exits: *Mat x3 / *Min) -10/Mines (discovered 3 exits: *Mat x2 / *Exi) -10/Exiles -9/Mines -8/Materials (discovered 1 exit: [*Fac]) History --------- Turn | Location | Event 4 | -11/Scrapyard | Discovered new exit (range 15) 109 | -11/Scrapyard | Entered Materials 309 | -10/Materials | Build established: Mutant 405 | -10/Materials | Discovered new exit (range 16) 427 | -10/Materials | Identified exit to Mines 564 | -10/Materials | Core integrity fell below 50% 778 | -10/Materials | Discovered new exit (range 15) 1033 | -10/Materials | Discovered new exit (range 3) 1035 | -10/Materials | Identified exit to Materials 1272 | -10/Materials | Discovered exit to Materials (range 16) 1424 | -10/Materials | Entered Mines 1431 | -10/Mines | Received a Rocket Launcher from a helpful Derelict 1447 | -10/Mines | Learned Materials interactive machine intel 1497 | -10/Mines | Core integrity fell below 20% 1663 | -10/Mines | Found the Drone Emporium 1669 | -10/Mines | Found Prototype Device 1669 | -10/Mines | Identified Splice Drone Bay 1729 | -10/Mines | Discovered exit to Materials (range 10) 1770 | -10/Mines | Met a Derelict testing a Signal Generator 2043 | -10/Mines | Discovered exit to Materials (range 12) 2225 | -10/Mines | Deemed a non-threat by the Exiles lab entrance 2225 | -10/Mines | Discovered new exit (range 5) 2230 | -10/Mines | Identified exit to Exiles 2232 | -10/Mines | Entered Exiles 2275 | -10/Exiles | Met 8R-AWN 2306 | -10/Exiles | Met EX-HEX 2363 | -10/Exiles | Met EX-BIN 2387 | -10/Exiles | Aligned with FarCom system 2389 | -10/Exiles | Given EX-Vault access code 2427 | -10/Exiles | Opened EX-Vault 2465 | -10/Exiles | Warned to stay clear of 0b10 Research branches 2492 | -10/Exiles | Exiles lab attacked by MAIN.C 2604 | -10/Exiles | Discovered new exit (range 14) 2621 | -10/Exiles | Identified exit to Mines 2623 | -10/Exiles | Entered Mines 2624 | -9/Mines | Assembled infested the area 2629 | -9/Mines | Assisted by a Guerilla fighting off Assembled 2679 | -9/Mines | Learned Materials interactive machine intel 2679 | -9/Mines | Assisted by bots powering up and referring to "LRC-V3" 2942 | -9/Mines | Discovered new exit (range 7) 2950 | -9/Mines | Identified exit to Materials 2952 | -9/Mines | Entered Materials 2952 | -8/Materials | Evolved 4 slots: Utility x4 2953 | -8/Materials | Loaded intel: 19 interactive machine locations 2971 | -8/Materials | Lost 4 allies 3200 | -8/Materials | Lost 3 parts (1p1n1w) 3407 | -8/Materials | Repaired Faulty Imp. VTOL Module 3775 | -8/Materials | Build established: Scavenger-Mutant 5160 | -8/Materials | Discovered new exit (range 8) 5889 | -8/Materials | Core integrity fell below 50% 5902 | -8/Materials | Build established: Mutant 5911 | -8/Materials | Core integrity fell below 20% 5917 | -8/Materials | Destroyed by Y-45 Defender with Heavy Assault Rifle Last Messages --------------- 05901_ R-06 Scavenger collects Imp. Light Armor Plating. 05904_ U-05 Engineer lays Concrete. 05904_ U-05 Engineer builds a Wall. 05905_ U-05 Engineer lays Concrete. 05905_ Knocked back. 05906_ U-05 Engineer lays Concrete. 05907_ U-05 Engineer builds a Wall. 05909_ U-05 Engineer lays Concrete. 05910_ System corrupted: Component data lost. 05910_ U-05 Engineer lays Concrete. 05910_ Adv. Targeting Computer destroyed. 05910_ Knocked back. 05911_ U-05 Engineer lays Concrete. 05911_ U-05 Engineer builds a Wall. 05912_ U-05 Engineer lays Concrete. 05914_ U-05 Engineer builds a Wall. 05914_ Slammed into H-61 Shepherd. 05914_ U-05 Engineer lays Concrete. 05916_ Knocked back. 05917_ U-05 Engineer lays Concrete. Map ----- +----------------------------------------------------+ | ?????????????????????????????????????????????????? | | ??????T?????????"""""????????????????????????????? | | ????????????????""T""????????????????????????????? | | ?????????????????????????????????????????????????? | | ?????????????????????????????????????????????????? | | ??????????????????????????????????""?????????????? | | ??????????????????????????????????"""????????????? | | ???????????????????????????????????S"????????????? | | ?????????????????????????????????????????????????? | | ????????????????????????g ??????????????????????? | | ???????????????????????? #?????????????????????? | | ???????????????????????? #?????????????????????? | | ???????????????????????# #?????????????????????? | | ???????????????????????# #?????????????????????? | | ???????????????????????# #?????????????????????? | | ???????????????????????#g #?????????????????????? | | ????###########????????# #?????????????????????? | | ????# #???"?"??+ %##????????????????????? | | ????# #???"R"??# ###???????????????????? | | ????# % #???"""??# # #???????????????????? | | ????# #??###??## ###???????+##?????????? | | ????# """ """ ######### u ###### ?????????? | | ????# """ """ ## % % % % k #????????? | | ????# " "%""" # m % k Hkwu w ????????? | | ????# % "#% % t Y #????????? | | ????####+#######% #### @ ######???????????????? | | ####### #???# ######/###????????????????????? | | #???# #??? ?????????????????????? | | ####### #???# #??? ????????????????????? | | ??????# #???##% ##?? ???????????????????? | | ####### #????# #??? #??????????????????? | | ## ###### ##? #??????????????????? | | = + #####w #? #??????????????????? | | ## ## #??????????????????? | | ## T ## #??????????????????? | | ## ## #??????????????????? | | ## ##### ###########??????????????????? | | # ###########????????????????????????????? | | ##% # #?????????????????????????????? | | = ##[ # #?????????????????????????????? | | ####### % # #?????????????????????????????? | | % # #?????????????????????????????? | | % + #?????????????????????????????? | | # #?????????????????????????????? | | ####### # #?????????????????????????????? | | ## # #?????????????????????????????? | | """ ## # #?????????????????????????????? | | """ ## ##########?????????????????????????????? | | """ ## #??????????????????????????????????????? | | """ ## #??????????????????????????????????????? | +----------------------------------------------------+ Best States ------------- Heat Dissipation 41 Energy Generation 14 Energy Capacity 265 Matter Stores 300 Matter Capacity 300 Sight Range 16 Terrain Scan Density 10 Armor Coverage 450 Evasion (%) 55 Targeting Accuracy 16 Recoil Reduction 2 Item Schematics ----------------- None Robot Schematics ------------------ None Fabricated ------------ Nothing Alien Tech Used ----------------- None Achievements -------------- None Challenges ------------ None Game ------ Seed CommBurstRifle Manual? 0 Play Time 00:39:26 Cumulative 13.6 hours Start 2024.04.02 @ 19:31:05 End 2024.04.03 @ 21:14:57 Sessions 3 Manual Loads 0 Difficulty Rogue Special Mode None Game No. 13 Rogue 13 Adventurer 0 Explorer 0 Win Type - Total 0 Types 0/0/0/0/0/0/0/0/0 Lore% 8 Gallery% 20 Achievement% 19 Wizard Run 0 Options --------- Layout 0 ASCII 0 Keyboard 1 Movement Numpad Keybinds 0 Fullscreen 1 Font 18/SmallcapsGlow Map View 76x50 Zoom Use 0% Tactical HUD 1 Map Filters NONE Filters NONE Steam 1 RUN: ee21b743-4d52-4a35-889c-95ce3d06c593